[Event "7th Iberoamerican-ch 2019"]
[Site "Linares"]
[Date "2019.08.16"]
[Round "7.28"]
[White "Silva, Goncalo Nuno Neto Pi"]
[Black "Moral Garcia, Serafin"]
[Result "1/2-1/2"]
[ECO "C47"]
[WhiteElo "2085"]
[BlackElo "2281"]
[Annotator "NA"]
[PlyCount "130"]
[EventDate "2019.08.10"]
[EventType "swiss"]
[EventCountry "ESP"]
[SourceTitle "playchess.com"]
[Source "ChessBase"]
[SourceQuality "1"]
[TimeControl "5400+30"]

1. e4 {[%emt 0:00:00]} e5 {[%emt 0:00:05]} 2. Nf3 {[%emt 0:00:00]} Nc6 {[%emt 0:00:09]} 3. Nc3 {[%emt 0:00:00]} Nf6 {[%emt 0:00:33]} 4. a3 {[%emt 0:00:00]} g6 {[%emt 0:00:48]} 5. Bc4 {[%emt 0:00:00]} Bg7 {[%emt 0:00:16]} 6. d3 {[%emt 0:00:00]} d6 {[%emt 0:00:59]} 7. Be3 {[%emt 0:00:07]} h6 {[%emt 0:02:05]} 8. h3 {[%emt 0:00:06]} O-O {[%emt 0:01:13]} 9. Qd2 {[%emt 0:00:17]} Kh7 {[%emt 0:00:11]} 10. g4 {[%emt 0:00:06]} Ng8 {[%emt 0:01:32]} 11. O-O-O {[%emt 0:00:24]} a6 {[%emt 0:02:51]} 12. Rdg1 {[%emt 0:00:56]} Nd4 {[%emt 0:05:26]} 13. Rg3 {[%emt 0:11:38]} b5 {[%emt 0:02:28]} 14. Ba2 {[%emt 0:00:11]} Be6 {[%emt 0:01:25]} 15. Bxe6 {[%emt 0:00:55]} fxe6 {[%emt 0:00:45]} 16. Qd1 {[%emt 0:03:00]} c5 {[%emt 0:01:12]} 17. h4 {[%emt 0:02:03]} Rc8 {[%emt 0:02:58]} 18. g5 {[%emt 0:04:30]} h5 {[%emt 0:02:53]} 19. Nd2 {[%emt 0:02:00]} b4 {[%emt 0:07:35]} 20. Ncb1 {[%emt 0:00:47]} bxa3 {[%emt 0:03:08]} 21. Nxa3 {[%emt 0:00:10]} d5 {[%emt 0:00:51]} 22. c4 {[%emt 0:07:15]} Rb8 {[%emt 0:03:46]} 23. cxd5 {[%emt 0:04:46]} exd5 {[%emt 0:00:01]} 24. exd5 {[%emt 0:00:13]} Qxd5 {[%emt 0:00:48]} 25. Nac4 {[%emt 0:00:06]} Ne2+ {[%emt 0:04:19]} 26. Qxe2 {[%emt 0:01:00]} Qxh1+ {[%emt 0:00:06]} 27. Qf1 {[%emt 0:00:39]} Qxf1+ {[%emt 0:05:00]} 28. Nxf1 {[%emt 0:00:02]} e4 {[%emt 0:00:12]} 29. dxe4 {[%emt 0:00:33]} Bd4 {[%emt 0:00:11]} 30. Nfd2 {[%emt 0:04:33]} Ne7 {[%emt 0:01:15]} 31. Bxd4 {[%emt 0:04:27]} cxd4 {[%emt 0:00:38]} 32. Ra3 {[%emt 0:00:04]} Rxf2 {[%emt 0:01:40]} 33. Rxa6 {[%emt 0:00:12]} Rb7 {[%emt 0:00:02]} 34. Rd6 {[%emt 0:01:52]} Rf4 {[%emt 0:01:59]} 35. b4 {[%emt 0:00:43]} Rxh4 {[%emt 0:04:40]} 36. b5 {[%emt 0:01:40]} Nc8 {[%emt 0:02:28]} 37. Rxd4 {[%emt 0:00:23]} Rg4 {[%emt 0:01:21]} 38. Nf3 {[%emt 0:02:06]} Rf4 {[%emt 0:04:45]} 39. Nce5 {[%emt 0:00:43]} Ne7 {[%emt 0:07:54]} 40. Kd2 {[%emt 0:01:00]} Rf8 {[%emt 0:01:29]} 41. Ke3 {[%emt 0:02:07]} Re8 {[%emt 0:00:31]} 42. Rd7 {[%emt 0:00:42]} Rxd7 {[%emt 0:01:48]} 43. Nxd7 {[%emt 0:00:03]} Kg7 {[%emt 0:00:06]} 44. Nfe5 {[%emt 0:00:52]} Nc8 {[%emt 0:00:53]} 45. Kf4 {[%emt 0:02:52]} Re6 {[%emt 0:00:31]} 46. Nc4 {[%emt 0:00:18]} Re7 {[%emt 0:02:14]} 47. Nce5 {[%emt 0:00:29]} Nd6 {[%emt 0:04:43]} 48. b6 {[%emt 0:00:23]} Re8 {[%emt 0:00:07]} 49. Nf6 {[%emt 0:00:26]} Ra8 {[%emt 0:00:41]} 50. Nc6 {[%emt 0:05:48]} Nb7 {[%emt 0:01:53]} 51. e5 {[%emt 0:04:16]} Kf7 {[%emt 0:00:06]} 52. Ke4 {[%emt 0:00:10]} h4 {[%emt 0:01:51]} 53. Kd5 {[%emt 0:03:01]} h3 {[%emt 0:02:12]} 54. e6+ {[%emt 0:00:03]} Kg7 {[%emt 0:00:03]} 55. Ng4 Rh8 {[%emt 0:03:28]} 56. e7 {[%emt 0:00:27]} Kf7 {[%emt 0:01:00]} 57. Nce5+ {[%emt 0:00:00]} Ke8 {[%emt 0:01:14]} 58. Kc6 {[%emt 0:10:51]} h2 {[%emt 0:02:14]} 59. Nxh2 {[%emt 0:00:07]} Rxh2 {[%emt 0:00:05]} 60. Kxb7 {[%emt 0:00:06]} Kxe7 {[%emt 0:00:53]} 61. Nxg6+ {[%emt 0:02:00]} Ke6 {[%emt 0:00:14]} 62. Nf4+ {[%emt 0:00:07]} Kf5 {[%emt 0:00:12]} 63. g6 {[%emt 0:00:09]} Kf6 {[%emt 0:02:19]} 64. Kb8 {[%emt 0:01:16]} Rf2 {[%emt 0:01:17]} 65. Nd3 {[%emt 0:00:53]} Rf5 {[%emt 0:00:11]} 1/2-1/2

[Event "7th Iberoamerican-ch 2019"]
[Site "Linares"]
[Date "2019.08.16"]
[Round "7.29"]
[White "Forgas Moreno, Yaniela"]
[Black "Romero Berruezo, Francisco"]
[Result "0-1"]
[ECO "B56"]
[WhiteElo "2276"]
[BlackElo "2161"]
[Annotator "NA"]
[PlyCount "74"]
[EventDate "2019.08.10"]
[EventType "swiss"]
[EventCountry "ESP"]
[SourceTitle "playchess.com"]
[Source "ChessBase"]
[SourceQuality "1"]
[TimeControl "5400+30"]

1. e4 {[%emt 0:00:00]} c5 {[%emt 0:00:02]} 2. Nf3 {[%emt 0:00:00]} d6 {[%emt 0:00:33]} 3. d4 {[%emt 0:00:00]} cxd4 {[%emt 0:00:08]} 4. Nxd4 {[%emt 0:00:01]} Nf6 {[%emt 0:00:08]} 5. Nc3 {[%emt 0:00:06]} Bd7 {[%emt 0:00:38]} 6. Be2 {[%emt 0:03:11]} e5 {[%emt 0:00:35]} 7. Nb3 {[%emt 0:00:29]} Bc6 {[%emt 0:01:35]} 8. Bg5 {[%emt 0:01:10]} Be7 {[%emt 0:00:19]} 9. Qd3 {[%emt 0:00:16]} O-O {[%emt 0:03:32]} 10. O-O-O {[%emt 0:00:56]} Nbd7 {[%emt 0:00:33]} 11. h4 {[%emt 0:01:38]} b5 {[%emt 0:03:30]} 12. Nd5 {[%emt 0:07:22]} Bxd5 {[%emt 0:03:57]} 13. exd5 {[%emt 0:00:07]} a5 {[%emt 0:00:41]} 14. Qxb5 {[%emt 0:02:53]} a4 {[%emt 0:00:33]} 15. Nd2 {[%emt 0:00:56]} a3 {[%emt 0:01:09]} 16. b3 {[%emt 0:07:30]} Ra5 {[%emt 0:01:42]} 17. Qb7 {[%emt 0:00:59]} Nc5 {[%emt 0:11:04]} 18. Qc6 {[%emt 0:01:09]} Qb8 {[%emt 0:04:03]} 19. b4 {[%emt 0:06:19]} Qxb4 {[%emt 0:04:20]} 20. Nc4 {[%emt 0:08:12]} Ra6 {[%emt 0:16:17]} 21. Qc7 {[%emt 0:01:19]} Qc3 {[%emt 0:08:39]} 22. Rh3 {[%emt 0:04:50]} Nb3+ {[%emt 0:06:42]} 23. axb3 {[%emt 0:00:17]} a2 {[%emt 0:01:20]} 24. Rxc3 {[%emt 0:00:53]} a1=Q+ {[%emt 0:00:08]} 25. Kd2 {[%emt 0:00:27]} Ne4+ {[%emt 0:00:05]} 26. Ke1 {[%emt 0:00:25]} Qxc3+ {[%emt 0:00:05]} 27. Kf1 {[%emt 0:03:29]} Bxg5 {[%emt 0:00:29]} 28. hxg5 {[%emt 0:00:43]} Ra1 {[%emt 0:00:27]} 29. Qc6 {[%emt 0:01:35]} Rxd1+ {[%emt 0:00:31]} 30. Bxd1 {[%emt 0:00:03]} Qd4 {[%emt 0:05:47]} 31. Ne3 {[%emt 0:00:46]} Qd2 {[%emt 0:01:47]} 32. Be2 {[%emt 0:01:28]} Nc3 {[%emt 0:00:35]} 33. Bg4 {[%emt 0:03:49]} Qc1+ {[%emt 0:00:18]} 34. Nd1 {[%emt 0:00:13]} Nxd1 {[%emt 0:00:10]} 35. Ke2 {[%emt 0:00:04]} Nb2 {[%emt 0:00:43]} 36. Bf3 {[%emt 0:00:25]} Qd1+ {[%emt 0:01:20]} 37. Ke3 {[%emt 0:00:06]} Qd4+ {[%emt 0:00:09] Ke4} 0-1

[Event "7th Iberoamerican-ch 2019"]
[Site "Linares"]
[Date "2019.08.16"]
[Round "7.30"]
[White "Perera Borrego, Maria Adela"]
[Black "Lacayo, Rene"]
[Result "0-1"]
[ECO "D31"]
[WhiteElo "2186"]
[BlackElo "2274"]
[Annotator "NA"]
[PlyCount "34"]
[EventDate "2019.08.10"]
[EventType "swiss"]
[EventCountry "ESP"]
[SourceTitle "playchess.com"]
[Source "ChessBase"]
[SourceQuality "1"]
[TimeControl "5400+30"]

1. d4 {[%emt 0:00:00]} d5 {[%emt 0:00:00]} 2. c4 {[%emt 0:00:00]} e6 {[%emt 0:00:01]} 3. Nc3 {[%emt 0:00:00]} c6 {[%emt 0:00:15]} 4. e3 {[%emt 0:01:42]} Nf6 {[%emt 0:00:16]} 5. Bd3 {[%emt 0:00:37]} Nbd7 {[%emt 0:00:28]} 6. cxd5 {[%emt 0:01:23]} exd5 {[%emt 0:00:13]} 7. Nf3 {[%emt 0:05:48]} Bd6 {[%emt 0:01:10]} 8. h3 {[%emt 0:00:28]} O-O {[%emt 0:05:59]} 9. O-O {[%emt 0:00:30]} Re8 {[%emt 0:02:43]} 10. Qc2 {[%emt 0:01:22]} Nf8 {[%emt 0:03:43]} 11. Rb1 {[%emt 0:04:44]} Qe7 {[%emt 0:05:28]} 12. a3 {[%emt 0:00:35]} Ne4 {[%emt 0:07:50]} 13. b4 {[%emt 0:03:27]} Bf5 {[%emt 0:08:24]} 14. Bb2 {[%emt 0:15:25]} Ng6 {[%emt 0:04:40]} 15. b5 {[%emt 0:04:29]} Qf6 {[%emt 0:07:44]} 16. bxc6 {[%emt 0:06:06]} bxc6 {[%emt 0:00:24]} 17. Qe2 {[%emt 0:06:37]} Nxc3 {[%emt 0:02:20]} 0-1

[Event "7th Iberoamerican-ch 2019"]
[Site "Linares"]
[Date "2019.08.16"]
[Round "7.31"]
[White "Rodriguez Del Cerro, Ricardo"]
[Black "Roselli Mailhe, Bernardo"]
[Result "0-1"]
[ECO "E63"]
[WhiteElo "2184"]
[BlackElo "2461"]
[Annotator "ChessBase"]
[PlyCount "60"]
[EventDate "2019.08.10"]
[EventType "swiss"]
[EventCountry "ESP"]
[SourceTitle "playchess.com"]
[Source "ChessBase"]
[SourceQuality "1"]
[TimeControl "5400+30"]

1. Nf3 {[%emt 0:01:10]} Nf6 {[%emt 0:00:08]} 2. c4 {[%emt 0:01:00]} g6 {[%emt 0:00:02]} 3. g3 {[%emt 0:01:22]} Bg7 {[%emt 0:00:05]} 4. Bg2 {[%emt 0:00:22]} O-O {[%emt 0:00:07]} 5. O-O {[%emt 0:00:26]} d6 {[%emt 0:00:03]} 6. d4 {[%emt 0:00:38]} Nc6 {[%emt 0:00:04]} 7. Nc3 {[%emt 0:00:54]} a6 {[%emt 0:00:04]} 8. d5 {[%emt 0:00:39]} Na5 {[%emt 0:00:05]} 9. b3 {[%emt 0:01:00]} c5 {[%emt 0:00:39]} 10. dxc6 {[%emt 0:00:44]} Nxc6 {[%emt 0:00:07]} 11. Bb2 {[%emt 0:00:42]} Qa5 {[%emt 0:05:39]} 12. Qc1 {[%emt 0:01:56]} Bd7 {[%emt 0:05:44]} 13. Rd1 {[%emt 0:01:11]} Rfc8 {[%emt 0:05:26]} 14. Nd5 {[%emt 0:10:48]} Ne8 {[%emt 0:00:59]} 15. Bxg7 {[%emt 0:02:08]} Nxg7 {[%emt 0:02:12]} 16. c5 {[%emt 0:13:55]} dxc5 {[%emt 0:07:05]} 17. Nxe7+ {[%emt 0:00:22]} Nxe7 {[%emt 0:00:05]} 18. Rxd7 {[%emt 0:00:12]} Rc7 {[%emt 0:02:27]} 19. b4 {[%emt 0:02:56]} Qb6 {[%emt 0:00:05]} 20. bxc5 {[%emt 0:09:04]} Rxc5 {[%emt 0:03:42]} 21. Qb1 {[%emt 0:05:22]} Rb5 {[%emt 0:06:33]} 22. Qd3 {[%emt 0:05:18]} Nc6 {[%emt 0:05:22]} 23. a4 {[%emt 0:01:56]} Rb4 {[%emt 0:08:03]} 24. Ng5 {[%emt 0:13:42]} Ne5 {[%emt 0:15:30]} 25. Rxb7 {[%emt 0:00:30]} Qf6 {[%emt 0:00:20]} 26. Ne4 {[%emt 0:03:04]} Nf3+ {[%emt 0:00:50]} 27. Bxf3 {[%emt 0:00:29]} Qxa1+ {[%emt 0:00:06]} 28. Kg2 {[%emt 0:00:07]} Rxb7 {[%emt 0:00:05]} 29. Nc5 {[%emt 0:02:23]} Rbb8 {[%emt 0:01:26]} 30. Bd5 {[%emt 0:01:53]} Rd8 {[%emt 0:07:09]} 0-1

[Event "7th Iberoamerican-ch 2019"]
[Site "Linares"]
[Date "2019.08.16"]
[Round "7.32"]
[White "Mieles Palau, Daniel"]
[Black "Gomez Barrera, Javiera Belen"]
[Result "1-0"]
[ECO "C45"]
[WhiteElo "2384"]
[BlackElo "2156"]
[Annotator "NA"]
[PlyCount "87"]
[EventDate "2019.08.10"]
[EventType "swiss"]
[EventCountry "ESP"]
[SourceTitle "playchess.com"]
[Source "ChessBase"]
[SourceQuality "1"]
[TimeControl "5400+30"]

1. e4 {[%emt 0:00:08]} e5 {[%emt 0:00:00]} 2. Nf3 {[%emt 0:00:09]} Nc6 {[%emt 0:00:00]} 3. d4 {[%emt 0:00:08]} exd4 {[%emt 0:00:00]} 4. Nxd4 {[%emt 0:00:04]} Bc5 {[%emt 0:00:00]} 5. Nb3 {[%emt 0:00:16]} Bb6 {[%emt 0:00:13]} 6. Qe2 {[%emt 0:00:27]} a5 {[%emt 0:05:55]} 7. a4 {[%emt 0:00:26]} Nf6 {[%emt 0:00:42]} 8. Nc3 {[%emt 0:02:03]} O-O {[%emt 0:01:39]} 9. Be3 {[%emt 0:01:21]} Bxe3 {[%emt 0:02:41]} 10. Qxe3 {[%emt 0:00:06]} Re8 {[%emt 0:06:24]} 11. f3 {[%emt 0:01:22]} Nb4 {[%emt 0:04:18]} 12. O-O-O {[%emt 0:01:12]} Qe7 {[%emt 0:09:44]} 13. g4 {[%emt 0:04:42]} c6 {[%emt 0:11:36]} 14. Be2 {[%emt 0:13:07]} d5 {[%emt 0:15:04]} 15. g5 {[%emt 0:02:31]} Nd7 {[%emt 0:01:36]} 16. h4 {[%emt 0:01:50]} dxe4 {[%emt 0:04:51]} 17. Nxe4 {[%emt 0:09:46]} Nd5 {[%emt 0:06:46]} 18. Qg1 {[%emt 0:03:16]} Qe5 {[%emt 0:05:25]} 19. h5 {[%emt 0:01:45]} f5 {[%emt 0:07:50]} 20. gxf6 {[%emt 0:08:50]} N7xf6 {[%emt 0:00:17]} 21. h6 {[%emt 0:02:24]} g6 {[%emt 0:00:18]} 22. Bd3 {[%emt 0:09:10]} b5 {[%emt 0:05:38]} 23. Re1 {[%emt 0:07:34]} Bf5 {[%emt 0:05:36]} 24. Nxf6+ {[%emt 0:07:22]} Qxf6 {[%emt 0:00:06]} 25. Rxe8+ {[%emt 0:00:12]} Rxe8 {[%emt 0:00:02]} 26. Bxf5 {[%emt 0:00:09]} Qxf5 {[%emt 0:00:02]} 27. Qa7 {[%emt 0:00:51]} Qf7 {[%emt 0:02:53]} 28. Qxf7+ {[%emt 0:00:44]} Kxf7 {[%emt 0:00:00]} 29. Nxa5 {[%emt 0:00:08]} Ra8 {[%emt 0:02:26]} 30. Nxc6 {[%emt 0:00:38]} Rxa4 {[%emt 0:00:01]} 31. Kd2 {[%emt 0:00:25]} Kf6 {[%emt 0:00:21]} 32. c3 {[%emt 0:03:11]} Rf4 {[%emt 0:01:34]} 33. Ke2 {[%emt 0:00:26]} Rf5 {[%emt 0:01:27]} 34. Nd4 {[%emt 0:03:33]} Re5+ {[%emt 0:00:39]} 35. Kd2 {[%emt 0:00:12]} Nf4 {[%emt 0:00:41]} 36. Ra1 {[%emt 0:00:46]} Rh5 {[%emt 0:00:40]} 37. Ra5 {[%emt 0:00:11]} Rxh6 {[%emt 0:00:33]} 38. Rxb5 {[%emt 0:00:08]} Rh2+ {[%emt 0:00:26]} 39. Ke3 {[%emt 0:00:07]} g5 {[%emt 0:00:32]} 40. c4 {[%emt 0:01:05]} h5 {[%emt 0:00:28]} 41. c5 {[%emt 0:00:11]} Ke5 {[%emt 0:00:32]} 42. c6+ {[%emt 0:00:29]} Kd6 {[%emt 0:00:24]} 43. Rxg5 {[%emt 0:00:08]} Nd5+ {[%emt 0:00:11]} 44. Rxd5+ {[%emt 0:00:10]} 1-0

[Event "7th Iberoamerican-ch 2019"]
[Site "Linares"]
[Date "2019.08.16"]
[Round "7.33"]
[White "Fernandez Ayuso, Sergio"]
[Black "Perez Garcia, Alejandro"]
[Result "0-1"]
[ECO "B13"]
[WhiteElo "2153"]
[BlackElo "2347"]
[Annotator "ChessBase"]
[PlyCount "96"]
[EventDate "2019.08.10"]
[EventType "swiss"]
[EventCountry "ESP"]
[SourceTitle "playchess.com"]
[Source "ChessBase"]
[SourceQuality "1"]
[TimeControl "5400+30"]

1. e4 {[%emt 0:00:05]} c6 {[%emt 0:02:06]} 2. d4 {[%emt 0:02:43]} d5 {[%emt 0:00:09]} 3. exd5 {[%emt 0:00:03]} cxd5 {[%emt 0:00:07]} 4. c4 {[%emt 0:00:05]} Nf6 {[%emt 0:00:59]} 5. Nc3 {[%emt 0:00:07]} Nc6 {[%emt 0:06:25]} 6. Nf3 {[%emt 0:01:05]} Be6 {[%emt 0:00:09]} 7. Be2 {[%emt 0:05:20]} g6 {[%emt 0:10:55]} 8. O-O {[%emt 0:01:37]} Bg7 {[%emt 0:04:08]} 9. Ng5 {[%emt 0:10:08]} O-O {[%emt 0:00:56]} 10. Nxe6 {[%emt 0:01:03]} fxe6 {[%emt 0:00:05]} 11. Be3 {[%emt 0:00:43]} Rc8 {[%emt 0:02:18]} 12. Qd2 {[%emt 0:13:04]} Kh8 {[%emt 0:03:49]} 13. b3 {[%emt 0:08:23]} Ne8 {[%emt 0:12:08]} 14. Rad1 {[%emt 0:02:23]} Nd6 {[%emt 0:01:27]} 15. Bh6 {[%emt 0:13:52]} Bxh6 {[%emt 0:05:21]} 16. Qxh6 {[%emt 0:00:06]} Nf5 {[%emt 0:00:07]} 17. Qg5 {[%emt 0:00:08]} Qa5 {[%emt 0:10:54]} 18. cxd5 {[%emt 0:15:48]} Ncxd4 {[%emt 0:10:33]} 19. Rxd4 {[%emt 0:00:59]} Nxd4 {[%emt 0:01:11]} 20. Qe5+ {[%emt 0:00:08]} Rf6 {[%emt 0:00:39]} 21. Qxd4 {[%emt 0:02:19]} Qxc3 {[%emt 0:06:59]} 22. Qxa7 {[%emt 0:00:28]} Qb4 {[%emt 0:09:28]} 23. dxe6 {[%emt 0:00:25]} Rxe6 {[%emt 0:00:41]} 24. Bc4 {[%emt 0:00:10]} Re1 {[%emt 0:01:06]} 25. Qd4+ {[%emt 0:01:32]} e5 {[%emt 0:00:03]} 26. Qd5 {[%emt 0:02:35]} Rf8 {[%emt 0:00:58]} 27. a4 {[%emt 0:03:29]} Qb6 {[%emt 0:04:56]} 28. Qd2 {[%emt 0:00:40]} Rxf1+ {[%emt 0:00:32]} 29. Kxf1 {[%emt 0:00:04]} Rd8 {[%emt 0:00:17]} 30. Qg5 {[%emt 0:01:20]} Qd6 {[%emt 0:00:45]} 31. g3 {[%emt 0:01:13]} Rf8 {[%emt 0:00:38]} 32. Qe3 {[%emt 0:00:20]} Kg7 {[%emt 0:00:54]} 33. Kg1 {[%emt 0:02:47]} b6 {[%emt 0:00:22]} 34. Kf1 {[%emt 0:01:42]} Rd8 {[%emt 0:00:58]} 35. Kg2 {[%emt 0:02:33]} Qd4 {[%emt 0:01:56]} 36. Qg5 {[%emt 0:00:57]} Qe4+ {[%emt 0:01:29]} 37. f3 {[%emt 0:02:43]} Qc2+ {[%emt 0:00:14]} 38. Kh3 {[%emt 0:00:16]} Qf5+ {[%emt 0:00:34]} 39. Kh4 {[%emt 0:02:58]} Rd4+ {[%emt 0:01:32]} 40. g4 {[%emt 0:01:07]} Qxg5+ {[%emt 0:00:18]} 41. Kxg5 {[%emt 0:00:05]} Rd2 {[%emt 0:00:21]} 42. h3 {[%emt 0:00:21]} h6+ {[%emt 0:00:44]} 43. Kh4 {[%emt 0:00:03]} Rg2 {[%emt 0:00:07]} 44. b4 {[%emt 0:02:06]} g5+ {[%emt 0:00:16]} 45. Kh5 {[%emt 0:00:03]} Rg3 {[%emt 0:00:28]} 46. Bf1 {[%emt 0:01:27]} Rg1 {[%emt 0:00:18]} 47. a5 {[%emt 0:00:53]} Rxf1 {[%emt 0:00:08]} 48. f4 {[%emt 0:00:18]} Rh1 {[%emt 0:00:09]} 0-1

[Event "7th Iberoamerican-ch 2019"]
[Site "Linares"]
[Date "2019.08.16"]
[Round "7.34"]
[White "Arroyo Rodriguez, Jesus"]
[Black "Serarols Mabras, Bernat"]
[Result "0-1"]
[ECO "B10"]
[WhiteElo "2126"]
[BlackElo "2338"]
[Annotator "NA"]
[PlyCount "90"]
[EventDate "2019.08.10"]
[EventType "swiss"]
[EventCountry "ESP"]
[SourceTitle "playchess.com"]
[Source "ChessBase"]
[SourceQuality "1"]
[TimeControl "5400+30"]

1. e4 {[%emt 0:02:00]} c6 {[%emt 0:00:00]} 2. Nc3 {[%emt 0:00:09]} d5 {[%emt 0:00:00]} 3. Nf3 {[%emt 0:00:07]} Nf6 {[%emt 0:03:04]} 4. e5 {[%emt 0:02:31]} Ne4 {[%emt 0:00:07]} 5. d4 {[%emt 0:01:06]} Nxc3 {[%emt 0:01:02]} 6. bxc3 {[%emt 0:00:01]} c5 {[%emt 0:05:30]} 7. c4 {[%emt 0:06:21]} Nc6 {[%emt 0:08:27]} 8. c3 {[%emt 0:02:10]} e6 {[%emt 0:04:43]} 9. Be2 {[%emt 0:10:30]} cxd4 {[%emt 0:09:36]} 10. cxd4 {[%emt 0:01:51]} Bb4+ {[%emt 0:00:30]} 11. Kf1 {[%emt 0:00:49]} dxc4 {[%emt 0:05:35]} 12. Be3 {[%emt 0:02:47]} c3 {[%emt 0:04:41]} 13. a3 {[%emt 0:05:50]} Be7 {[%emt 0:09:23]} 14. h4 {[%emt 0:01:25]} h6 {[%emt 0:02:49]} 15. Bd3 {[%emt 0:06:18]} Qa5 {[%emt 0:03:39]} 16. Be4 {[%emt 0:04:10]} Bd7 {[%emt 0:00:15]} 17. g3 {[%emt 0:04:06]} Rc8 {[%emt 0:00:51]} 18. Kg2 {[%emt 0:01:14]} Nd8 {[%emt 0:03:32]} 19. Qb1 {[%emt 0:07:59]} Bc6 {[%emt 0:00:43]} 20. Bxc6+ {[%emt 0:01:27]} Rxc6 {[%emt 0:01:12]} 21. Rc1 {[%emt 0:00:26]} O-O {[%emt 0:02:43]} 22. Qd3 {[%emt 0:07:40]} b6 {[%emt 0:04:36]} 23. g4 {[%emt 0:05:35]} Qd5 {[%emt 0:01:19]} 24. Kg3 {[%emt 0:01:06]} f5 {[%emt 0:07:58]} 25. g5 {[%emt 0:01:06]} hxg5 {[%emt 0:02:14]} 26. hxg5 {[%emt 0:01:14]} Nf7 {[%emt 0:01:17]} 27. Rh1 {[%emt 0:02:32]} Nh8 {[%emt 0:04:18]} 28. Rxh8+ {[%emt 0:01:39]} Kxh8 {[%emt 0:00:03]} 29. Rh1+ {[%emt 0:01:55]} Kg8 {[%emt 0:00:04]} 30. Bf4 {[%emt 0:09:15]} c2 {[%emt 0:01:09]} 31. g6 {[%emt 0:04:13]} Bh4+ {[%emt 0:05:26]} 32. Rxh4 {[%emt 0:04:52]} c1=Q {[%emt 0:00:53]} 33. Bxc1 {[%emt 0:00:19]} Rxc1 {[%emt 0:00:03]} 34. Qe2 {[%emt 0:00:38]} f4+ {[%emt 0:01:18]} 35. Kh2 {[%emt 0:01:06]} Rf5 {[%emt 0:00:39]} 36. Ne1 {[%emt 0:01:02]} Rg5 {[%emt 0:01:10]} 37. Qd3 {[%emt 0:00:18]} Rxe1 {[%emt 0:02:10]} 38. Rh8+ {[%emt 0:00:22]} Kxh8 {[%emt 0:00:03]} 39. Qh3+ {[%emt 0:00:05]} Kg8 {[%emt 0:00:04]} 40. Qh7+ {[%emt 0:00:04]} Kf8 {[%emt 0:00:05]} 41. Qh8+ {[%emt 0:00:20]} Ke7 {[%emt 0:00:01]} 42. Qxg7+ {[%emt 0:00:10]} Kd8 {[%emt 0:00:26]} 43. Qf8+ {[%emt 0:00:27]} Kd7 {[%emt 0:00:51]} 44. Qf7+ {[%emt 0:00:07]} Kc6 {[%emt 0:00:54]} 45. Qe8+ {[%emt 0:00:19]} Qd7 {[%emt 0:00:07]} 0-1

[Event "7th Iberoamerican-ch 2019"]
[Site "Linares"]
[Date "2019.08.16"]
[Round "7.35"]
[White "Alvarez Morales, Miguel"]
[Black "Garcia Martin, Marta"]
[Result "0-1"]
[ECO "B20"]
[WhiteElo "1965"]
[BlackElo "2313"]
[Annotator "NA"]
[PlyCount "66"]
[EventDate "2019.08.10"]
[EventType "swiss"]
[EventCountry "ESP"]
[SourceTitle "playchess.com"]
[Source "ChessBase"]
[SourceQuality "1"]
[TimeControl "5400+30"]

1. e4 {[%emt 0:00:00]} c5 {[%emt 0:00:49]} 2. c4 {[%emt 0:00:00]} Nc6 {[%emt 0:00:39]} 3. Nc3 {[%emt 0:00:00]} g6 {[%emt 0:04:41]} 4. g3 {[%emt 0:00:00]} Bg7 {[%emt 0:00:07]} 5. Bg2 {[%emt 0:00:01]} d6 {[%emt 0:06:27]} 6. Nge2 {[%emt 0:00:19]} h5 {[%emt 0:02:49]} 7. h3 {[%emt 0:01:03]} Bd7 {[%emt 0:13:49]} 8. d3 {[%emt 0:00:44]} a6 {[%emt 0:07:38]} 9. Be3 {[%emt 0:00:15]} Nd4 {[%emt 0:00:38]} 10. O-O {[%emt 0:01:00]} b5 {[%emt 0:06:44]} 11. e5 {[%emt 0:01:56]} dxe5 {[%emt 0:03:12]} 12. Bxa8 {[%emt 0:01:19]} Qxa8 {[%emt 0:00:07]} 13. Nd5 {[%emt 0:01:16]} Qc6 {[%emt 0:04:54]} 14. Bxd4 {[%emt 0:03:36]} exd4 {[%emt 0:04:26]} 15. Qd2 {[%emt 0:13:16]} e6 {[%emt 0:23:52]} 16. Rfe1 {[%emt 0:01:09]} Kf8 {[%emt 0:00:51]} 17. Ndf4 {[%emt 0:07:08]} Ne7 {[%emt 0:01:43]} 18. Qa5 {[%emt 0:01:37]} Bf6 {[%emt 0:00:22]} 19. cxb5 {[%emt 0:00:11]} axb5 {[%emt 0:00:16]} 20. b4 {[%emt 0:01:56]} e5 {[%emt 0:01:34]} 21. bxc5 {[%emt 0:04:46]} exf4 {[%emt 0:00:59]} 22. Nxf4 {[%emt 0:00:31]} g5 {[%emt 0:02:06]} 23. Ng2 {[%emt 0:05:44]} Bxh3 {[%emt 0:00:38]} 24. Re4 {[%emt 0:00:51]} Bf5 {[%emt 0:05:06]} 25. Ree1 {[%emt 0:03:05]} Nd5 {[%emt 0:02:05]} 26. a4 {[%emt 0:00:30]} bxa4 {[%emt 0:02:08]} 27. Rxa4 {[%emt 0:00:29]} Kg7 {[%emt 0:00:26]} 28. Ra3 {[%emt 0:03:21]} Nc3 {[%emt 0:00:42]} 29. Ne3 {[%emt 0:01:27]} dxe3 {[%emt 0:00:16]} 30. Rxc3 {[%emt 0:00:05]} exf2+ {[%emt 0:00:16]} 31. Kxf2 {[%emt 0:00:02]} Bd4+ {[%emt 0:00:52]} 32. Ke2 {[%emt 0:00:44]} Re8+ {[%emt 0:00:15]} 33. Kd2 {[%emt 0:00:02]} Qg2+ {[%emt 0:00:13]} 0-1

[Event "7th Iberoamerican-ch 2019"]
[Site "Linares"]
[Date "2019.08.16"]
[Round "7.36"]
[White "Diaz Mino, Daniel"]
[Black "Calzetta Ruiz, Monica"]
[Result "0-1"]
[ECO "B24"]
[WhiteElo "1888"]
[BlackElo "2257"]
[Annotator "NA"]
[PlyCount "66"]
[EventDate "2019.08.10"]
[EventType "swiss"]
[EventCountry "ESP"]
[SourceTitle "playchess.com"]
[Source "ChessBase"]
[SourceQuality "1"]
[TimeControl "5400+30"]

1. e4 {[%emt 0:00:00]} c5 {[%emt 0:00:00]} 2. Nc3 {[%emt 0:00:00]} Nc6 {[%emt 0:00:00]} 3. g3 {[%emt 0:00:00]} g6 {[%emt 0:00:00]} 4. Bg2 {[%emt 0:00:00]} Bg7 {[%emt 0:00:00]} 5. d3 {[%emt 0:00:00]} Nf6 {[%emt 0:00:05]} 6. f4 {[%emt 0:00:18]} d6 {[%emt 0:00:07]} 7. Nf3 {[%emt 0:00:07]} O-O {[%emt 0:00:12]} 8. O-O {[%emt 0:00:05]} Bg4 {[%emt 0:00:27]} 9. h3 {[%emt 0:00:41]} Bxf3 {[%emt 0:00:07]} 10. Bxf3 {[%emt 0:00:16]} Rb8 {[%emt 0:03:11]} 11. a4 {[%emt 0:02:13]} a6 {[%emt 0:00:50]} 12. Be3 {[%emt 0:02:01]} Nd7 {[%emt 0:01:26]} 13. Rb1 {[%emt 0:02:57]} Nd4 {[%emt 0:05:28]} 14. Bg2 {[%emt 0:00:43]} b5 {[%emt 0:00:52]} 15. axb5 {[%emt 0:00:22]} axb5 {[%emt 0:00:12]} 16. Ne2 {[%emt 0:01:32]} b4 {[%emt 0:00:41]} 17. g4 {[%emt 0:01:10]} Ra8 {[%emt 0:31:11]} 18. Qd2 {[%emt 0:27:13]} Nxe2+ {[%emt 0:06:40]} 19. Qxe2 {[%emt 0:00:19]} Ra2 {[%emt 0:00:08]} 20. b3 {[%emt 0:00:26]} Qb6 {[%emt 0:01:24]} 21. f5 {[%emt 0:01:36]} Bd4 {[%emt 0:07:50]} 22. Bxd4 {[%emt 0:08:49]} cxd4 {[%emt 0:00:02]} 23. g5 {[%emt 0:00:59]} Qc5 {[%emt 0:00:12]} 24. Rbc1 {[%emt 0:00:54]} Rc8 {[%emt 0:00:30]} 25. Rf2 {[%emt 0:00:39]} Ne5 {[%emt 0:02:44]} 26. f6 {[%emt 0:13:21]} e6 {[%emt 0:04:49]} 27. h4 {[%emt 0:14:36]} Qc3 {[%emt 0:02:04]} 28. Bf1 {[%emt 0:04:55]} Rc5 {[%emt 0:08:52]} 29. Qd1 {[%emt 0:03:57]} Rca5 {[%emt 0:03:39]} 30. h5 {[%emt 0:01:41]} Ra1 {[%emt 0:03:49]} 31. Rxa1 {[%emt 0:00:31]} Rxa1 {[%emt 0:00:11]} 32. Qe2 {[%emt 0:02:53]} Re1 {[%emt 0:00:09]} 33. Qd2 {[%emt 0:01:37]} Nf3+ {[%emt 0:00:09]} 0-1